[Event "Titled Tuesday Blitz July 4 Late 2023"]
[White "Taboas Rodriguez, Daniel"]
[Black "Papp, Levente"]
[WhiteFideId "2208466"]
[BlackFideId "751243"]
[WhiteElo "2468"]
[BlackElo "2697"]
[Result "1-0"]
[Round "5"]
[TimeControl "180+2"]
[Date "2023.07.04"]
[WhiteClock "0:00:30"]
[BlackClock "0:00:00"]
[Board "44"]

1. d4 {[%clk 0:03:00]}  e6 {[%clk 0:03:00]} 2. c4 {[%clk 0:02:57]}  b6 {[%clk 0:03:00]} 3. Nc3 {[%clk 0:02:57]}  Bb7 {[%clk 0:02:59]} 4. Nf3 {[%clk 0:02:55]}  Nf6 {[%clk 0:02:58]} 5. Bg5 {[%clk 0:02:54]}  h6 {[%clk 0:02:58]} 6. Bh4 {[%clk 0:02:54]}  Be7 {[%clk 0:02:55]} 7. e3 {[%clk 0:02:54]}  Ne4 {[%clk 0:02:52]} 8. Nxe4 {[%clk 0:02:54]}  Bxh4 {[%clk 0:02:47]} 9. Bd3 {[%clk 0:02:54]}  f5 {[%clk 0:02:45]} 10. Nc3 {[%clk 0:02:42]}  O-O {[%clk 0:02:44]} 11. O-O {[%clk 0:02:38]}  d6 {[%clk 0:02:38]} 12. Qc2 {[%clk 0:02:26]}  Bxf3 {[%clk 0:01:29]} 13. gxf3 {[%clk 0:02:27]}  f4 {[%clk 0:01:30]} 14. Kh1 {[%clk 0:02:20]}  Kh8 {[%clk 0:01:20]} 15. Rg1 {[%clk 0:02:20]}  c6 {[%clk 0:01:16]} 16. Rg4 {[%clk 0:02:12]}  fxe3 {[%clk 0:01:12]} 17. fxe3 {[%clk 0:02:13]}  g5 {[%clk 0:00:50]} 18. Rag1 {[%clk 0:01:59]}  Rxf3 {[%clk 0:00:45]} 19. Rxh4 {[%clk 0:01:49]}  gxh4 {[%clk 0:00:36]} 20. Qg2 {[%clk 0:01:49]}  Rf7 {[%clk 0:00:31]} 21. Qg6 {[%clk 0:01:21]}  Qf8 {[%clk 0:00:31]} 22. Ne4 {[%clk 0:01:21]}  Nd7 {[%clk 0:00:25]} 23. Nxd6 {[%clk 0:01:16]}  Re7 {[%clk 0:00:23]} 24. Rf1 {[%clk 0:00:58]}  Qg7 {[%clk 0:00:14]} 25. Nf7+ {[%clk 0:00:58]}  Rxf7 {[%clk 0:00:15]} 26. Rxf7 {[%clk 0:00:58]}  Qxg6 {[%clk 0:00:13]} 27. Bxg6 {[%clk 0:00:58]}  Nf8 {[%clk 0:00:10]} 28. Be4 {[%clk 0:00:57]}  Rc8 {[%clk 0:00:05]} 29. Kg2 {[%clk 0:00:50]}  c5 {[%clk 0:00:05]} 30. d5 {[%clk 0:00:50]}  Rd8 {[%clk 0:00:04]} 31. Kh3 {[%clk 0:00:46]}  exd5 {[%clk 0:00:04]} 32. Bxd5 {[%clk 0:00:46]}  Nd7 {[%clk 0:00:04]} 33. Kxh4 {[%clk 0:00:44]}  Ne5 {[%clk 0:00:04]} 34. Rxa7 {[%clk 0:00:43]}  Rd6 {[%clk 0:00:01]} 35. Kh5 {[%clk 0:00:38]}  b5 {[%clk 0:00:02]} 36. b3 {[%clk 0:00:37]}  bxc4 {[%clk 0:00:02]} 37. bxc4 {[%clk 0:00:37]}  Nd7 {[%clk 0:00:00]} 38. e4 {[%clk 0:00:30]} 1-0


[Site "https://www.chess.com"]

[Event "Titled Tuesday Blitz July 4 Late 2023"]
[White "Toolin, Christopher"]
[Black "Papasimakopoulos, Alexandros"]
[WhiteFideId "2024543"]
[BlackFideId "4244125"]
[WhiteElo "2411"]
[BlackElo "2690"]
[Result "1/2-1/2"]
[Round "5"]
[TimeControl "180+2"]
[Date "2023.07.04"]
[WhiteClock "0:00:09"]
[BlackClock "0:00:24"]
[Board "47"]

1. d4 {[%clk 0:02:54]}  e6 {[%clk 0:02:59]} 2. c4 {[%clk 0:02:52]}  Nf6 {[%clk 0:03:00]} 3. Nf3 {[%clk 0:02:52]}  Bb4+ {[%clk 0:03:00]} 4. Nbd2 {[%clk 0:02:52]}  b6 {[%clk 0:03:00]} 5. Qc2 {[%clk 0:02:52]}  Bb7 {[%clk 0:02:59]} 6. a3 {[%clk 0:02:50]}  Bxd2+ {[%clk 0:02:59]} 7. Bxd2 {[%clk 0:02:49]}  d6 {[%clk 0:02:52]} 8. g3 {[%clk 0:02:43]}  Be4 {[%clk 0:02:50]} 9. Qb3 {[%clk 0:02:37]}  O-O {[%clk 0:02:48]} 10. Bg2 {[%clk 0:02:37]}  c5 {[%clk 0:02:48]} 11. dxc5 {[%clk 0:02:33]}  bxc5 {[%clk 0:02:49]} 12. O-O {[%clk 0:02:32]}  Nc6 {[%clk 0:02:49]} 13. Bc3 {[%clk 0:02:24]}  Rb8 {[%clk 0:02:36]} 14. Qa4 {[%clk 0:02:24]}  Rb6 {[%clk 0:02:22]} 15. Rfd1 {[%clk 0:02:23]}  d5 {[%clk 0:02:19]} 16. cxd5 {[%clk 0:02:14]}  exd5 {[%clk 0:02:20]} 17. Ng5 {[%clk 0:01:38]}  Bxg2 {[%clk 0:02:17]} 18. Kxg2 {[%clk 0:01:39]}  d4 {[%clk 0:02:15]} 19. Nf3 {[%clk 0:01:16]}  Qe7 {[%clk 0:02:11]} 20. Bd2 {[%clk 0:01:13]}  Qxe2 {[%clk 0:02:11]} 21. Re1 {[%clk 0:01:06]}  Qb5 {[%clk 0:02:12]} 22. Qc2 {[%clk 0:01:05]}  c4 {[%clk 0:02:05]} 23. Bg5 {[%clk 0:00:57]}  d3 {[%clk 0:01:54]} 24. Qc1 {[%clk 0:00:47]}  Qxb2 {[%clk 0:01:12]} 25. Qxc4 {[%clk 0:00:45]}  Rd8 {[%clk 0:01:00]} 26. Reb1 {[%clk 0:00:33]}  Qc2 {[%clk 0:00:56]} 27. Qxc2 {[%clk 0:00:20]}  dxc2 {[%clk 0:00:57]} 28. Rxb6 {[%clk 0:00:19]}  axb6 {[%clk 0:00:58]} 29. Rc1 {[%clk 0:00:19]}  h6 {[%clk 0:00:56]} 30. Bxf6 {[%clk 0:00:19]}  gxf6 {[%clk 0:00:57]} 31. Rxc2 {[%clk 0:00:19]}  Ne5 {[%clk 0:00:57]} 32. Nh4 {[%clk 0:00:18]}  Ra8 {[%clk 0:00:53]} 33. Rc3 {[%clk 0:00:16]}  b5 {[%clk 0:00:52]} 34. Nf5 {[%clk 0:00:15]}  h5 {[%clk 0:00:52]} 35. Rb3 {[%clk 0:00:12]}  Kh7 {[%clk 0:00:27]} 36. Nd6 {[%clk 0:00:09]}  Rd8 {[%clk 0:00:25]} 37. Nxb5 {[%clk 0:00:07]}  Rd2 {[%clk 0:00:25]} 38. a4 {[%clk 0:00:04]}  Ng4 {[%clk 0:00:24]} 39. Rf3 {[%clk 0:00:04]}  Ra2 {[%clk 0:00:24]} 40. Nc3 {[%clk 0:00:04]}  Rc2 {[%clk 0:00:22]} 41. h3 {[%clk 0:00:05]}  Nxf2 {[%clk 0:00:22]} 42. Rxf2 {[%clk 0:00:04]}  Rxc3 {[%clk 0:00:23]} 43. Ra2 {[%clk 0:00:04]}  Rc6 {[%clk 0:00:20]} 44. a5 {[%clk 0:00:04]}  Ra6 {[%clk 0:00:21]} 45. Kf3 {[%clk 0:00:05]}  Kg6 {[%clk 0:00:21]} 46. Ke4 {[%clk 0:00:05]}  Kg5 {[%clk 0:00:22]} 47. Kd4 {[%clk 0:00:05]}  f5 {[%clk 0:00:21]} 48. Kc4 {[%clk 0:00:05]}  f4 {[%clk 0:00:22]} 49. gxf4+ {[%clk 0:00:05]}  Kxf4 {[%clk 0:00:23]} 50. Kb5 {[%clk 0:00:05]}  Ra8 {[%clk 0:00:23]} 51. Rf2+ {[%clk 0:00:06]}  Kg3 {[%clk 0:00:23]} 52. Rxf7 {[%clk 0:00:06]}  Kxh3 {[%clk 0:00:22]} 53. Kb6 {[%clk 0:00:06]}  h4 {[%clk 0:00:22]} 54. a6 {[%clk 0:00:06]}  Kg2 {[%clk 0:00:21]} 55. Kb7 {[%clk 0:00:07]}  Rxa6 {[%clk 0:00:20]} 56. Kxa6 {[%clk 0:00:07]}  h3 {[%clk 0:00:21]} 57. Rg7+ {[%clk 0:00:08]}  Kf2 {[%clk 0:00:21]} 58. Rf7+ {[%clk 0:00:08]}  Kg2 {[%clk 0:00:21]} 59. Rg7+ {[%clk 0:00:09]}  Kh1 {[%clk 0:00:22]} 60. Kb5 {[%clk 0:00:08]}  h2 {[%clk 0:00:22]} 61. Rh7 {[%clk 0:00:09]}  Kg2 {[%clk 0:00:22]} 62. Rg7+ {[%clk 0:00:09]}  Kh1 {[%clk 0:00:23]} 63. Rh7 {[%clk 0:00:09]}  Kg2 {[%clk 0:00:24]} 64. Rg7+ {[%clk 0:00:09]}  Kh1 {[%clk 0:00:24]} 1/2-1/2


[Site "https://www.chess.com"]

[Event "Titled Tuesday Blitz July 4 Late 2023"]
[White "Cluke86"]
[Black "Kavyev, Ruslan"]
[BlackFideId "34110981"]
[WhiteElo "2329"]
[BlackElo "2679"]
[Result "1/2-1/2"]
[Round "5"]
[TimeControl "180+2"]
[Date "2023.07.04"]
[WhiteClock "0:02:11"]
[BlackClock "0:02:02"]
[Board "48"]

1. e4 {[%clk 0:03:00]}  e5 {[%clk 0:02:58]} 2. Nf3 {[%clk 0:03:00]}  Nc6 {[%clk 0:02:28]} 3. Bc4 {[%clk 0:02:59]}  Nf6 {[%clk 0:02:27]} 4. O-O {[%clk 0:02:58]}  Nxe4 {[%clk 0:02:23]} 5. Nc3 {[%clk 0:02:58]}  Nxc3 {[%clk 0:02:16]} 6. dxc3 {[%clk 0:02:59]}  Be7 {[%clk 0:02:17]} 7. Qd5 {[%clk 0:02:55]}  O-O {[%clk 0:02:07]} 8. Nxe5 {[%clk 0:02:55]}  Bf6 {[%clk 0:02:05]} 9. Nxf7 {[%clk 0:02:48]}  Qe7 {[%clk 0:02:03]} 10. Nh6+ {[%clk 0:02:11]}  Kh8 {[%clk 0:02:00]} 11. Nf7+ {[%clk 0:02:11]}  Kg8 {[%clk 0:02:01]} 12. Nh6+ {[%clk 0:02:11]}  Kh8 {[%clk 0:02:01]} 13. Nf7+ {[%clk 0:02:11]}  Kg8 {[%clk 0:02:02]} 1/2-1/2


[Site "https://www.chess.com"]

[Event "Titled Tuesday Blitz July 4 Late 2023"]
[White "Taranenko, Evgueniy"]
[Black "Sargsyan, Shant"]
[WhiteFideId "14122138"]
[BlackFideId "13306766"]
[WhiteElo "2384"]
[BlackElo "2992"]
[Result "0-1"]
[Round "5"]
[TimeControl "180+2"]
[Date "2023.07.04"]
[WhiteClock "0:00:21"]
[BlackClock "0:01:32"]
[Board "49"]

1. e4 {[%clk 0:03:00]}  g6 {[%clk 0:03:00]} 2. d4 {[%clk 0:03:00]}  Nf6 {[%clk 0:03:00]} 3. Nc3 {[%clk 0:02:59]}  d5 {[%clk 0:03:00]} 4. e5 {[%clk 0:02:58]}  Ne4 {[%clk 0:03:00]} 5. Nce2 {[%clk 0:02:58]}  f6 {[%clk 0:03:00]} 6. f3 {[%clk 0:02:53]}  Ng5 {[%clk 0:02:58]} 7. h4 {[%clk 0:02:53]}  Ne6 {[%clk 0:02:58]} 8. f4 {[%clk 0:02:46]}  c5 {[%clk 0:02:58]} 9. c3 {[%clk 0:02:46]}  Nc6 {[%clk 0:02:58]} 10. Nf3 {[%clk 0:02:46]}  Bh6 {[%clk 0:02:58]} 11. f5 {[%clk 0:02:33]}  Bxc1 {[%clk 0:02:56]} 12. Qxc1 {[%clk 0:02:33]}  gxf5 {[%clk 0:02:54]} 13. exf6 {[%clk 0:02:32]}  exf6 {[%clk 0:02:55]} 14. Qh6 {[%clk 0:02:25]}  cxd4 {[%clk 0:02:53]} 15. Nexd4 {[%clk 0:02:22]}  Nexd4 {[%clk 0:02:51]} 16. Nxd4 {[%clk 0:02:21]}  Qe7+ {[%clk 0:02:42]} 17. Kf2 {[%clk 0:02:13]}  Ne5 {[%clk 0:02:42]} 18. Bb5+ {[%clk 0:01:49]}  Bd7 {[%clk 0:02:38]} 19. Qh5+ {[%clk 0:01:45]}  Kd8 {[%clk 0:02:28]} 20. Be2 {[%clk 0:01:05]}  Kc7 {[%clk 0:02:15]} 21. Rhe1 {[%clk 0:01:02]}  Rhg8 {[%clk 0:02:12]} 22. Rad1 {[%clk 0:00:52]}  Rae8 {[%clk 0:02:08]} 23. Nxf5 {[%clk 0:00:26]}  Bxf5 {[%clk 0:02:01]} 24. Qxf5 {[%clk 0:00:25]}  Qc5+ {[%clk 0:02:02]} 25. Kf1 {[%clk 0:00:25]}  Re7 {[%clk 0:01:59]} 26. Qf2 {[%clk 0:00:25]}  Qxf2+ {[%clk 0:01:46]} 27. Kxf2 {[%clk 0:00:25]}  Kc6 {[%clk 0:01:47]} 28. Bf3 {[%clk 0:00:23]}  Rd7 {[%clk 0:01:44]} 29. Rd4 {[%clk 0:00:20]}  Rgd8 {[%clk 0:01:40]} 30. Red1 {[%clk 0:00:20]}  b5 {[%clk 0:01:39]} 31. b3 {[%clk 0:00:20]}  Kc5 {[%clk 0:01:38]} 32. b4+ {[%clk 0:00:19]}  Kc6 {[%clk 0:01:38]} 33. a4 {[%clk 0:00:19]}  bxa4 {[%clk 0:01:36]} 34. Ra1 {[%clk 0:00:20]}  Nxf3 {[%clk 0:01:33]} 35. Kxf3 {[%clk 0:00:19]}  Kb5 {[%clk 0:01:34]} 36. Kf4 {[%clk 0:00:19]}  Rc8 {[%clk 0:01:34]} 37. Rad1 {[%clk 0:00:19]}  Rxc3 {[%clk 0:01:33]} 38. Rxd5+ {[%clk 0:00:19]}  Rxd5 {[%clk 0:01:33]} 39. Rxd5+ {[%clk 0:00:20]}  Kxb4 {[%clk 0:01:34]} 40. Rd7 {[%clk 0:00:21]}  Rc4+ {[%clk 0:01:33]} 41. Kf5 {[%clk 0:00:21]}  Rc5+ {[%clk 0:01:34]} 42. Kxf6 {[%clk 0:00:21]}  a3 {[%clk 0:01:35]} 43. Rxa7 {[%clk 0:00:19]}  Ra5 {[%clk 0:01:34]} 44. Re7 {[%clk 0:00:20]}  a2 {[%clk 0:01:34]} 45. Re1 {[%clk 0:00:20]}  a1=Q+ {[%clk 0:01:34]} 46. Rxa1 {[%clk 0:00:21]}  Rxa1 {[%clk 0:01:35]} 47. g4 {[%clk 0:00:22]}  Kc5 {[%clk 0:01:35]} 48. g5 {[%clk 0:00:22]}  Kd5 {[%clk 0:01:35]} 49. h5 {[%clk 0:00:22]}  Ra6+ {[%clk 0:01:33]} 50. Kf7 {[%clk 0:00:21]}  Ke5 {[%clk 0:01:32]} 51. g6 {[%clk 0:00:22]}  hxg6 {[%clk 0:01:31]} 52. hxg6 {[%clk 0:00:23]}  Ra7+ {[%clk 0:01:31]} 53. Kf8 {[%clk 0:00:21]}  Kf6 {[%clk 0:01:32]} 54. g7 {[%clk 0:00:21]}  Ra8# {[%clk 0:01:32]} 0-1


[Site "https://www.chess.com"]

[Event "Titled Tuesday Blitz July 4 Late 2023"]
[White "ATM622"]
[Black "Leitao, Rafael"]
[BlackFideId "2101246"]
[WhiteElo "2564"]
[BlackElo "2783"]
[Result "0-1"]
[Round "5"]
[TimeControl "180+2"]
[Date "2023.07.04"]
[WhiteClock "0:00:00"]
[BlackClock "0:00:15"]
[Board "52"]

1. d4 {[%clk 0:03:00]}  Nf6 {[%clk 0:02:50]} 2. c4 {[%clk 0:02:59]}  g6 {[%clk 0:02:50]} 3. g3 {[%clk 0:02:59]}  Bg7 {[%clk 0:02:50]} 4. Bg2 {[%clk 0:03:00]}  O-O {[%clk 0:02:50]} 5. Nf3 {[%clk 0:03:00]}  d6 {[%clk 0:02:51]} 6. O-O {[%clk 0:03:00]}  Nc6 {[%clk 0:02:51]} 7. Nc3 {[%clk 0:03:01]}  e5 {[%clk 0:02:52]} 8. d5 {[%clk 0:03:01]}  Nb8 {[%clk 0:02:50]} 9. e4 {[%clk 0:03:01]}  a5 {[%clk 0:02:50]} 10. Re1 {[%clk 0:03:02]}  Na6 {[%clk 0:02:50]} 11. Be3 {[%clk 0:03:01]}  Ng4 {[%clk 0:02:46]} 12. Bc1 {[%clk 0:03:01]}  Nc5 {[%clk 0:02:40]} 13. h3 {[%clk 0:03:01]}  Nf6 {[%clk 0:02:40]} 14. Rb1 {[%clk 0:02:56]}  Bd7 {[%clk 0:02:37]} 15. g4 {[%clk 0:02:51]}  Kh8 {[%clk 0:02:35]} 16. Ng5 {[%clk 0:02:49]}  h6 {[%clk 0:02:22]} 17. Nf3 {[%clk 0:02:47]}  Ng8 {[%clk 0:02:22]} 18. Be3 {[%clk 0:02:41]}  b6 {[%clk 0:02:21]} 19. Qd2 {[%clk 0:02:36]}  f5 {[%clk 0:02:18]} 20. Bxc5 {[%clk 0:02:19]}  bxc5 {[%clk 0:02:18]} 21. exf5 {[%clk 0:02:03]}  gxf5 {[%clk 0:02:19]} 22. g5 {[%clk 0:02:04]}  Qe8 {[%clk 0:01:38]} 23. h4 {[%clk 0:01:49]}  Qh5 {[%clk 0:01:36]} 24. Ne2 {[%clk 0:01:39]}  e4 {[%clk 0:01:29]} 25. Nf4 {[%clk 0:01:39]}  Qf7 {[%clk 0:01:15]} 26. Nh2 {[%clk 0:01:34]}  Be5 {[%clk 0:01:12]} 27. Rbd1 {[%clk 0:01:05]}  Ne7 {[%clk 0:01:10]} 28. Kh1 {[%clk 0:00:47]}  Rg8 {[%clk 0:01:08]} 29. gxh6 {[%clk 0:00:30]}  Qf6 {[%clk 0:01:05]} 30. Nh3 {[%clk 0:00:19]}  Qxh4 {[%clk 0:01:03]} 31. f4 {[%clk 0:00:19]}  Bd4 {[%clk 0:00:55]} 32. Qe2 {[%clk 0:00:15]}  Rg3 {[%clk 0:00:54]} 33. Qf1 {[%clk 0:00:12]}  Rag8 {[%clk 0:00:52]} 34. Re2 {[%clk 0:00:11]}  Ng6 {[%clk 0:00:46]} 35. Rdd2 {[%clk 0:00:05]}  Rxh3 {[%clk 0:00:42]} 36. Bxh3 {[%clk 0:00:04]}  Nxf4 {[%clk 0:00:43]} 37. Rg2 {[%clk 0:00:01]}  Nxg2 {[%clk 0:00:25]} 38. Rxg2 {[%clk 0:00:02]}  Be5 {[%clk 0:00:19]} 39. Rxg8+ {[%clk 0:00:01]}  Kxg8 {[%clk 0:00:18]} 40. Qg2+ {[%clk 0:00:02]}  Kh7 {[%clk 0:00:18]} 41. Nf1 {[%clk 0:00:02]}  f4 {[%clk 0:00:16]} 42. Qxe4+ {[%clk 0:00:01]}  Kxh6 {[%clk 0:00:16]} 43. Kg1 {[%clk 0:00:00]}  Qxh3 {[%clk 0:00:15]} 0-1


[Site "https://www.chess.com"]

[Event "Titled Tuesday Blitz July 4 Late 2023"]
[White "Mahdavi, Reza"]
[Black "Ozates, Tuna"]
[WhiteFideId "12595926"]
[BlackFideId "6354521"]
[WhiteElo "2744"]
[BlackElo "2564"]
[Result "1-0"]
[Round "5"]
[TimeControl "180+2"]
[Date "2023.07.04"]
[WhiteClock "0:01:28"]
[BlackClock "0:00:13"]
[Board "53"]

1. e4 {[%clk 0:03:00]}  c5 {[%clk 0:02:54]} 2. Nf3 {[%clk 0:02:53]}  Nc6 {[%clk 0:02:53]} 3. d4 {[%clk 0:02:43]}  cxd4 {[%clk 0:02:53]} 4. Nxd4 {[%clk 0:02:44]}  Nf6 {[%clk 0:02:53]} 5. Nc3 {[%clk 0:02:34]}  e5 {[%clk 0:02:52]} 6. Ndb5 {[%clk 0:02:25]}  d6 {[%clk 0:02:51]} 7. Nd5 {[%clk 0:02:19]}  Nxd5 {[%clk 0:02:50]} 8. exd5 {[%clk 0:02:13]}  Nb8 {[%clk 0:02:50]} 9. c4 {[%clk 0:01:55]}  a6 {[%clk 0:02:48]} 10. Na3 {[%clk 0:01:56]}  Be7 {[%clk 0:02:47]} 11. Be2 {[%clk 0:01:53]}  O-O {[%clk 0:02:48]} 12. O-O {[%clk 0:01:54]}  f5 {[%clk 0:02:39]} 13. f4 {[%clk 0:01:53]}  Bf6 {[%clk 0:02:37]} 14. Rb1 {[%clk 0:01:47]}  Nd7 {[%clk 0:02:34]} 15. Nc2 {[%clk 0:01:48]}  Nc5 {[%clk 0:02:27]} 16. fxe5 {[%clk 0:01:44]}  dxe5 {[%clk 0:02:27]} 17. Be3 {[%clk 0:01:45]}  Ne4 {[%clk 0:02:15]} 18. c5 {[%clk 0:01:45]}  Bd7 {[%clk 0:02:13]} 19. Bd3 {[%clk 0:01:42]}  Rc8 {[%clk 0:01:57]} 20. Bxe4 {[%clk 0:01:40]}  fxe4 {[%clk 0:01:56]} 21. b4 {[%clk 0:01:37]}  Bb5 {[%clk 0:01:51]} 22. Rf2 {[%clk 0:01:34]}  Bd3 {[%clk 0:01:51]} 23. d6 {[%clk 0:01:35]}  Qd7 {[%clk 0:01:44]} 24. Rb3 {[%clk 0:01:34]}  Bh4 {[%clk 0:01:32]} 25. Rxf8+ {[%clk 0:01:31]}  Rxf8 {[%clk 0:01:32]} 26. Rxd3 {[%clk 0:01:31]}  exd3 {[%clk 0:01:31]} 27. Qxd3 {[%clk 0:01:32]}  h6 {[%clk 0:01:13]} 28. Qc4+ {[%clk 0:01:32]}  Qf7 {[%clk 0:01:09]} 29. Qxf7+ {[%clk 0:01:33]}  Rxf7 {[%clk 0:01:09]} 30. a4 {[%clk 0:01:30]}  Kf8 {[%clk 0:01:07]} 31. b5 {[%clk 0:01:30]}  axb5 {[%clk 0:01:08]} 32. axb5 {[%clk 0:01:31]}  Ke8 {[%clk 0:01:07]} 33. c6 {[%clk 0:01:32]}  bxc6 {[%clk 0:01:07]} 34. bxc6 {[%clk 0:01:32]}  Bd8 {[%clk 0:00:48]} 35. Bc5 {[%clk 0:01:28]}  Rf4 {[%clk 0:00:38]} 36. Ne3 {[%clk 0:01:19]}  Ba5 {[%clk 0:00:23]} 37. Nd5 {[%clk 0:01:13]}  Rf7 {[%clk 0:00:20]} 38. Bb6 {[%clk 0:01:10]}  Bxb6+ {[%clk 0:00:02]} 39. Nxb6 {[%clk 0:01:11]}  Kd8 {[%clk 0:00:03]} 40. c7+ {[%clk 0:01:10]}  Rxc7 {[%clk 0:00:03]} 41. dxc7+ {[%clk 0:01:11]}  Kxc7 {[%clk 0:00:04]} 42. Nc4 {[%clk 0:01:12]}  e4 {[%clk 0:00:03]} 43. Kf2 {[%clk 0:01:12]}  Kc6 {[%clk 0:00:03]} 44. Ke3 {[%clk 0:01:13]}  Kd5 {[%clk 0:00:04]} 45. Nd2 {[%clk 0:01:14]}  Ke5 {[%clk 0:00:04]} 46. Nxe4 {[%clk 0:01:15]}  g5 {[%clk 0:00:05]} 47. Kf3 {[%clk 0:01:16]}  Kf5 {[%clk 0:00:06]} 48. g4+ {[%clk 0:01:16]}  Kg6 {[%clk 0:00:06]} 49. Ng3 {[%clk 0:01:17]}  Kf6 {[%clk 0:00:07]} 50. Nh5+ {[%clk 0:01:18]}  Kg6 {[%clk 0:00:07]} 51. Ke4 {[%clk 0:01:19]}  Kh7 {[%clk 0:00:07]} 52. Kf5 {[%clk 0:01:20]}  Kg8 {[%clk 0:00:07]} 53. Kg6 {[%clk 0:01:20]}  Kh8 {[%clk 0:00:08]} 54. Kxh6 {[%clk 0:01:21]}  Kg8 {[%clk 0:00:08]} 55. Kxg5 {[%clk 0:01:22]}  Kh7 {[%clk 0:00:09]} 56. h4 {[%clk 0:01:23]}  Kh8 {[%clk 0:00:10]} 57. Kh6 {[%clk 0:01:23]}  Kg8 {[%clk 0:00:10]} 58. g5 {[%clk 0:01:24]}  Kh8 {[%clk 0:00:11]} 59. g6 {[%clk 0:01:25]}  Kg8 {[%clk 0:00:12]} 60. g7 {[%clk 0:01:26]}  Kf7 {[%clk 0:00:12]} 61. Kh7 {[%clk 0:01:26]}  Ke6 {[%clk 0:00:13]} 62. g8=Q+ {[%clk 0:01:27]}  Kf5 {[%clk 0:00:13]} 63. Qg5+ {[%clk 0:01:28]} 1-0


[Site "https://www.chess.com"]

[Event "Titled Tuesday Blitz July 4 Late 2023"]
[White "The_Sherman_Variation"]
[Black "Weetik, Vjacheslav"]
[BlackFideId "4153472"]
[WhiteElo "2559"]
[BlackElo "2731"]
[Result "1-0"]
[Round "5"]
[TimeControl "180+2"]
[Date "2023.07.04"]
[WhiteClock "0:00:34"]
[BlackClock "0:00:00"]
[Board "54"]

1. Nf3 {[%clk 0:03:00]}  Nf6 {[%clk 0:02:45]} 2. c4 {[%clk 0:02:59]}  g6 {[%clk 0:02:45]} 3. Nc3 {[%clk 0:02:59]}  Bg7 {[%clk 0:02:45]} 4. g3 {[%clk 0:02:59]}  O-O {[%clk 0:02:40]} 5. Bg2 {[%clk 0:02:59]}  c6 {[%clk 0:02:39]} 6. O-O {[%clk 0:02:58]}  d5 {[%clk 0:02:38]} 7. cxd5 {[%clk 0:02:58]}  cxd5 {[%clk 0:02:39]} 8. d4 {[%clk 0:02:58]}  Ne4 {[%clk 0:02:36]} 9. Bf4 {[%clk 0:02:55]}  Nc6 {[%clk 0:02:22]} 10. Ne5 {[%clk 0:02:34]}  Nxc3 {[%clk 0:02:18]} 11. bxc3 {[%clk 0:02:33]}  Nxe5 {[%clk 0:02:18]} 12. dxe5 {[%clk 0:02:33]}  Be6 {[%clk 0:02:14]} 13. Rb1 {[%clk 0:02:30]}  Rb8 {[%clk 0:01:39]} 14. Qd4 {[%clk 0:02:26]}  Qa5 {[%clk 0:01:38]} 15. Rfd1 {[%clk 0:02:19]}  Rfd8 {[%clk 0:01:37]} 16. h4 {[%clk 0:02:08]}  b6 {[%clk 0:01:23]} 17. h5 {[%clk 0:02:01]}  Rbc8 {[%clk 0:01:19]} 18. h6 {[%clk 0:01:56]}  Bf8 {[%clk 0:01:18]} 19. c4 {[%clk 0:01:45]}  Qxa2 {[%clk 0:00:57]} 20. cxd5 {[%clk 0:01:41]}  Qxe2 {[%clk 0:00:38]} 21. Qa4 {[%clk 0:01:23]}  Bf5 {[%clk 0:00:32]} 22. Ra1 {[%clk 0:01:13]}  g5 {[%clk 0:00:24]} 23. Bxg5 {[%clk 0:01:05]}  Qxe5 {[%clk 0:00:23]} 24. Bf4 {[%clk 0:01:06]}  Qf6 {[%clk 0:00:18]} 25. Qxa7 {[%clk 0:01:05]}  Bxh6 {[%clk 0:00:18]} 26. Bxh6 {[%clk 0:01:03]}  Qxh6 {[%clk 0:00:18]} 27. Qxe7 {[%clk 0:01:02]}  Qd6 {[%clk 0:00:18]} 28. Qg5+ {[%clk 0:01:02]}  Bg6 {[%clk 0:00:19]} 29. Rac1 {[%clk 0:00:59]}  Kg7 {[%clk 0:00:18]} 30. f4 {[%clk 0:00:53]}  h6 {[%clk 0:00:18]} 31. Qe5+ {[%clk 0:00:50]}  Qf6 {[%clk 0:00:16]} 32. Rxc8 {[%clk 0:00:45]}  Rxc8 {[%clk 0:00:17]} 33. d6 {[%clk 0:00:45]}  Rd8 {[%clk 0:00:18]} 34. d7 {[%clk 0:00:41]}  Qxe5 {[%clk 0:00:15]} 35. fxe5 {[%clk 0:00:42]}  Bf5 {[%clk 0:00:16]} 36. Bc6 {[%clk 0:00:42]}  f6 {[%clk 0:00:12]} 37. Rf1 {[%clk 0:00:40]}  Kg6 {[%clk 0:00:12]} 38. exf6 {[%clk 0:00:38]}  Rf8 {[%clk 0:00:06]} 39. Re1 {[%clk 0:00:35]}  Kxf6 {[%clk 0:00:00]} 40. Re8 {[%clk 0:00:34]} 1-0


[Site "https://www.chess.com"]

[Event "Titled Tuesday Blitz July 4 Late 2023"]
[White "Golubev, Mikhail"]
[Black "Fantastic_Power"]
[WhiteFideId "14100983"]
[WhiteElo "2544"]
[BlackElo "2670"]
[Result "1-0"]
[Round "5"]
[TimeControl "180+2"]
[Date "2023.07.04"]
[WhiteClock "0:00:05"]
[BlackClock "0:00:03"]
[Board "58"]

1. e4 {[%clk 0:03:00]}  c5 {[%clk 0:02:51]} 2. Nf3 {[%clk 0:03:00]}  e6 {[%clk 0:02:51]} 3. d4 {[%clk 0:02:59]}  cxd4 {[%clk 0:02:52]} 4. Nxd4 {[%clk 0:03:00]}  Nf6 {[%clk 0:02:52]} 5. Nc3 {[%clk 0:02:59]}  Nc6 {[%clk 0:02:53]} 6. Bf4 {[%clk 0:02:56]}  Bb4 {[%clk 0:02:46]} 7. Nb5 {[%clk 0:02:51]}  O-O {[%clk 0:02:45]} 8. Bd6 {[%clk 0:02:29]}  Bxd6 {[%clk 0:02:08]} 9. Qxd6 {[%clk 0:02:30]}  Ne8 {[%clk 0:02:07]} 10. Qd2 {[%clk 0:02:09]}  a6 {[%clk 0:01:59]} 11. Nd6 {[%clk 0:02:09]}  b5 {[%clk 0:02:00]} 12. O-O-O {[%clk 0:02:01]}  Qb6 {[%clk 0:01:53]} 13. f3 {[%clk 0:01:32]}  Ne5 {[%clk 0:01:24]} 14. Nxc8 {[%clk 0:01:00]}  Rxc8 {[%clk 0:01:25]} 15. f4 {[%clk 0:01:00]}  Nc4 {[%clk 0:01:24]} 16. Bxc4 {[%clk 0:00:58]}  Rxc4 {[%clk 0:01:22]} 17. Qxd7 {[%clk 0:00:56]}  b4 {[%clk 0:01:12]} 18. Na4 {[%clk 0:00:48]}  Qe3+ {[%clk 0:01:06]} 19. Qd2 {[%clk 0:00:43]}  Qxe4 {[%clk 0:01:05]} 20. Nb6 {[%clk 0:00:40]}  Nd6 {[%clk 0:00:07]} 21. Nxc4 {[%clk 0:00:37]}  Nxc4 {[%clk 0:00:08]} 22. Qd4 {[%clk 0:00:35]}  Qc6 {[%clk 0:00:08]} 23. Rhe1 {[%clk 0:00:31]}  h6 {[%clk 0:00:05]} 24. Re2 {[%clk 0:00:26]}  Rc8 {[%clk 0:00:05]} 25. Kb1 {[%clk 0:00:17]}  a5 {[%clk 0:00:05]} 26. c3 {[%clk 0:00:12]}  Qb5 {[%clk 0:00:03]} 27. cxb4 {[%clk 0:00:09]}  Qxb4 {[%clk 0:00:04]} 28. Ka1 {[%clk 0:00:06]}  Qb5 {[%clk 0:00:02]} 29. Rc2 {[%clk 0:00:05]}  Qb4 {[%clk 0:00:01]} 30. Rdc1 {[%clk 0:00:05]}  e5 {[%clk 0:00:01]} 31. fxe5 {[%clk 0:00:04]}  a4 {[%clk 0:00:01]} 32. Rxc4 {[%clk 0:00:04]}  Rxc4 {[%clk 0:00:02]} 33. Qxc4 {[%clk 0:00:04]}  Qd2 {[%clk 0:00:02]} 34. Qc8+ {[%clk 0:00:04]}  Kh7 {[%clk 0:00:03]} 35. Qc2+ {[%clk 0:00:05]}  Qxc2 {[%clk 0:00:03]} 36. Rxc2 {[%clk 0:00:05]} 1-0


[Site "https://www.chess.com"]